lending/lending_fUSD_20251116
["ID","MTS","AMOUNT","RATE_DAILY","PERIOD"]
[394139179,1763317855751,-669.283424,0.00029436,7]
[394139180,1763317855760,-151.0,0.00029436,7]
[394139181,1763317855770,-151.0,0.00029436,7]
[394139182,1763317855779,-151.0,0.00029436,7]
[394139183,1763317855788,-151.0,0.00029436,7]
[394139184,1763317855797,-151.0,0.00029436,7]
[394139185,1763317855807,-151.0,0.00029436,7]
[394139186,1763317855817,-151.0,0.00029436,7]
[394139187,1763317855830,-151.0,0.00029436,7]
[394139188,1763317855839,-1599.0,0.00029436,2]
[394139189,1763317855848,-821.0,0.00029436,2]
[394139190,1763317855859,-793.0,0.00029436,2]
[394139191,1763317855868,-1275.0,0.00029436,2]
[394139192,1763317855877,-907.0,0.00029436,2]
[394139193,1763317855887,-1190.0,0.00029436,2]
[394139194,1763317855899,-575.0,0.00029436,2]
[394139195,1763317855908,-3430.0,0.00029436,2]
[394139196,1763317855917,-608.0,0.00029436,2]
[394139197,1763317855926,-1119.94475774,0.000295,7]
[394139198,1763317855935,-590.0,0.00029512,2]
[394139199,1763317855945,-166.66,0.00029521,2]
[394139200,1763317855954,-1000.0,0.00029589,2]
[394139201,1763317855963,-1677.50393996,0.00029641,2]
[394139202,1763317855972,-2953.92967837,0.00029641,2]
[394139203,1763317855983,-193.03464017,0.00029641,2]
[394139204,1763317855993,-173.29294005,0.00029641,2]
[394139205,1763317856002,-2129.35830409,0.00029641,2]
[394139206,1763317856012,-590.0,0.00029694,2]
[394139207,1763317856021,-227.29861537,0.00029724,110]
[394139208,1763317856030,-590.0,0.00029781,2]
[394139209,1763317856039,-590.0,0.00029802,2]
[394139210,1763317856049,-1191.13830857,0.0002984,2]
[394139211,1763317856058,-151.0,0.00029863,7]
[394139212,1763317856067,-1000.0,0.00029863,2]
[394139213,1763317856076,-590.0,0.00029872,7]
[394139214,1763317856086,-6631.3124293,0.000299,2]
[394139215,1763317856095,-158.874689,0.000299,7]
[394139216,1763317856105,-166.077357,0.000299,7]
[394139217,1763317856114,-159.867477,0.00029943,7]
[394139218,1763317856123,-151.0,0.00029943,7]
[394139219,1763317856132,-161.529094,0.00029943,7]
[394139220,1763317856141,-151.0,0.00029943,7]
[394139221,1763317856150,-179.90794168,0.00029985,2]
[394139222,1763317856160,-234.48124328,0.0002999,2]
[394139223,1763317856169,-1370.60887362,0.0002999,2]
[394139224,1763317856178,-151.0,0.0003,2]
[394139225,1763317856187,-6034.13355087,0.0003,3]
[394139226,1763317856196,-108086.39168119,0.0003,5]
[394139227,1763317856205,-809.24222422,0.0003,30]
[394139228,1763317856215,-1012.01529811,0.0003,2]
[394139229,1763317856224,-1795.96021753,0.0003,2]
[394139230,1763317856233,-4600.66442657,0.0003,2]
[394139231,1763317856242,-300.0,0.0003,30]
[394139232,1763317856251,-261.44780531,0.0003,30]
[394139233,1763317856260,-413.44866689,0.0003,2]
[394139234,1763317856269,-161.09454275,0.0003,2]
[394139235,1763317856279,-23590.06986318,0.0003,2]
[394139236,1763317856288,-590.0,0.00030004,2]
[394139237,1763317856297,-168.1,0.000301,7]
[394139238,1763317856307,-296.75193143,0.0003013,30]
[394139239,1763317856316,-300.0,0.0003013,30]
[394139240,1763317856325,-200.0,0.0003013,2]
[394139241,1763317856334,-151.0,0.00030136,2]
[394139242,1763317856343,-495.27,0.00030137,2]
[394139243,1763317856352,-1000.0,0.00030137,2]
[394139244,1763317856361,-150.0,0.00030137,30]
[394139245,1763317856370,-200.0,0.00030137,2]
[394139246,1763317856379,-150.0,0.00030137,60]
[394139247,1763317856389,-500.0,0.00030137,60]
[394139248,1763317856398,-500.0,0.00030137,60]
[394139249,1763317856408,-150.0,0.00030137,60]
[394139250,1763317856417,-500.0,0.00030137,60]
[394139251,1763317856426,-500.0,0.00030137,60]
[394139252,1763317856435,-150.0,0.00030137,60]
[394139253,1763317856445,-500.0,0.00030137,60]
[394139254,1763317856454,-500.0,0.00030137,60]
[394139255,1763317856464,-500.0,0.00030137,60]
[394139256,1763317856473,-150.0,0.00030137,60]
[394139257,1763317856483,-500.0,0.00030137,60]
[394139258,1763317856492,-150.0,0.00030137,60]
[394139259,1763317856501,-500.0,0.00030137,60]
[394139260,1763317856510,-500.0,0.00030137,44]
[394139261,1763317856519,-500.0,0.00030137,60]
[394139262,1763317856528,-500.0,0.00030137,60]
[394139263,1763317856537,-150.0,0.00030137,60]
[394139264,1763317856546,-500.0,0.00030137,60]
[394139265,1763317856556,-500.0,0.00030137,60]
[394139266,1763317856566,-150.0,0.00030137,60]
[394139267,1763317856575,-500.0,0.00030137,60]
[394139268,1763317856585,-150.0,0.00030137,60]
[394139269,1763317856594,-500.0,0.00030137,60]
[394139270,1763317856603,-500.0,0.00030137,60]
[394139271,1763317856613,-500.0,0.00030137,60]
[394139272,1763317856622,-500.0,0.00030137,60]
[394139273,1763317856631,-500.0,0.00030137,60]
[394139274,1763317856641,-500.0,0.00030137,60]
[394139275,1763317856650,-500.0,0.00030137,60]
[394139276,1763317856659,-500.0,0.00030137,60]
[394139277,1763317856668,-500.0,0.00030137,60]
[394139278,1763317856678,-500.0,0.00030137,60]
[394139279,1763317856687,-211.95611934,0.00030137,60]
[394139280,1763317856696,-500.0,0.00030137,60]
[394139281,1763317856706,-500.0,0.00030137,14]
[394139282,1763317856715,-736.0,0.00030137,60]
[394139283,1763317856724,-500.0,0.00030137,60]
[394139284,1763317856876,-153.37617007,0.00030137,60]
[394139285,1763317856886,-214.49967185,0.00030137,60]
[394139286,1763317856895,-150.0,0.00030137,60]
[394139287,1763317856907,-150.0,0.00030137,60]
[394139288,1763317856916,-150.0,0.00030137,2]
[394139289,1763317856925,-500.0,0.00030137,60]
[394139290,1763317856935,-150.0,0.00030137,2]
[394139291,1763317856944,-150.0,0.00030137,60]
[394139292,1763317856953,-150.0,0.00030137,60]
[394139293,1763317856964,-150.0,0.00030137,60]
[394139294,1763317856973,-150.0,0.00030137,2]
[394139295,1763317856983,-150.0,0.00030137,60]
[394139296,1763317856993,-500.0,0.00030137,60]
[394139297,1763317857002,-150.6515313,0.00030192,60]
[394139298,1763317857011,-500.0,0.00030192,60]
[394139299,1763317857021,-500.0,0.00030192,60]
[394139300,1763317857030,-157.93408011,0.00030192,60]
[394139301,1763317857039,-500.0,0.00030192,60]
[394139302,1763317857053,-500.0,0.00030192,60]
[394139303,1763317857062,-150.0,0.00030192,60]
[394139304,1763317857072,-500.0,0.00030192,60]
[394139305,1763317857082,-500.0,0.00030192,60]
[394139306,1763317857092,-500.0,0.00030192,60]
[394139307,1763317857102,-150.77075567,0.00030192,60]
[394139308,1763317857111,-500.0,0.00030192,60]
[394139309,1763317857120,-155.570239,0.00030192,60]
[394139310,1763317857129,-500.0,0.00030192,60]
[394139311,1763317857139,-500.0,0.00030192,44]
[394139312,1763317857148,-500.0,0.00030192,60]
[394139313,1763317857158,-500.0,0.00030192,60]
[394139314,1763317857167,-150.0,0.00030192,60]
[394139315,1763317857177,-500.0,0.00030192,60]
[394139316,1763317857186,-500.0,0.00030192,60]
[394139317,1763317857195,-150.0,0.00030192,60]
[394139318,1763317857205,-500.0,0.00030192,60]
[394139319,1763317857215,-150.0,0.00030192,60]
[394139320,1763317857224,-500.0,0.00030192,60]
[394139321,1763317857234,-500.0,0.00030192,14]
[394139322,1763317857243,-736.0,0.00030192,60]
[394139323,1763317857252,-500.0,0.00030192,60]
[394139324,1763317857262,-163.0,0.00030192,60]
[394139325,1763317857271,-500.0,0.00030192,60]
[394139326,1763317857280,-150.0,0.00030192,60]
[394139327,1763317857289,-150.0,0.00030192,60]
[394139328,1763317857299,-150.0,0.00030192,60]
[394139329,1763317857308,-150.0,0.00030192,2]
[394139330,1763317857317,-150.0,0.00030192,60]
[394139331,1763317857326,-500.0,0.00030192,60]
[394139332,1763317857335,-310.17109434,0.00030247,60]
[394139333,1763317857344,-500.0,0.00030247,60]
[394139334,1763317857353,-500.0,0.00030247,60]
[394139335,1763317857363,-500.0,0.00030247,60]
[394139336,1763317857372,-209.71778513,0.00030247,60]
[394139337,1763317857382,-500.0,0.00030247,60]
[394139338,1763317857391,-325.70575154,0.00030247,60]
[394139339,1763317857401,-500.0,0.00030247,60]
[394139340,1763317857411,-384.15160057,0.00030247,60]
[394139341,1763317857420,-500.0,0.00030247,60]
[394139342,1763317857430,-500.0,0.00030247,44]
[394139343,1763317857439,-500.0,0.00030247,60]
[394139344,1763317857449,-500.0,0.00030247,60]
[394139345,1763317857458,-150.0,0.00030247,60]
[394139346,1763317857468,-500.0,0.00030247,60]
[394139347,1763317857477,-500.0,0.00030247,60]
[394139348,1763317857487,-150.0,0.00030247,60]
[394139349,1763317857496,-500.0,0.00030247,60]
[394139350,1763317857505,-150.0,0.00030247,60]
[394139351,1763317857515,-500.0,0.00030247,60]
[394139352,1763317857524,-500.0,0.00030247,14]
[394139353,1763317857534,-736.0,0.00030247,60]
[394139354,1763317857543,-500.0,0.00030247,60]
[394139355,1763317857553,-500.0,0.00030247,60]
[394139356,1763317857562,-150.0,0.00030247,60]
[394139357,1763317857571,-284.0,0.00030247,60]
[394139358,1763317857581,-150.0,0.00030247,60]
[394139359,1763317857591,-150.0,0.00030247,2]
[394139360,1763317857600,-150.0,0.00030247,60]
[394139361,1763317857610,-440.40518437,0.00030247,60]
[394139362,1763317857619,-590.0,0.00030285,2]
[394139363,1763317857629,-500.0,0.00030301,60]
[394139364,1763317857638,-500.0,0.00030301,60]
[394139365,1763317857647,-500.0,0.00030301,60]
[394139366,1763317857657,-500.0,0.00030301,60]
[394139367,1763317857666,-500.0,0.00030301,60]
[394139368,1763317857676,-500.0,0.00030301,60]
[394139369,1763317857685,-500.0,0.00030301,60]
[394139370,1763317857694,-500.0,0.00030301,60]
[394139371,1763317857703,-166.33719638,0.00030301,60]
[394139372,1763317857713,-500.0,0.00030301,60]
[394139373,1763317857722,-500.0,0.00030301,60]
[394139374,1763317857731,-150.0,0.00030301,60]
[394139375,1763317857741,-500.0,0.00030301,60]
[394139376,1763317857750,-212.75413196,0.00030301,60]
[394139377,1763317857760,-500.0,0.00030301,60]
[394139378,1763317857769,-500.0,0.00030301,14]
[394139379,1763317857778,-736.0,0.00030301,60]
[394139380,1763317857787,-582.85058391,0.00030301,60]
[394139381,1763317857796,-500.0,0.00030301,60]
[394139382,1763317857804,-150.0,0.00030301,60]
[394139383,1763317857813,-154.85574373,0.00030301,60]
[394139384,1763317857825,-280.79144782,0.00030301,2]
[394139385,1763317857835,-150.0,0.00030301,60]
[394139386,1763317857844,-590.0,0.00030302,2]
[394139387,1763317857853,-500.0,0.00030356,60]
[394139388,1763317857863,-500.0,0.00030356,60]
[394139389,1763317857872,-500.0,0.00030356,60]
[394139390,1763317857881,-500.0,0.00030356,60]
[394139391,1763317857890,-500.0,0.00030356,60]
[394139392,1763317857902,-647.52238953,0.00030356,60]
[394139393,1763317857912,-500.0,0.00030356,60]
[394139394,1763317857921,-500.0,0.00030356,60]
[394139395,1763317857930,-500.0,0.00030356,60]
[394139396,1763317857939,-500.0,0.00030356,60]
[394139397,1763317857948,-150.0,0.00030356,60]
[394139398,1763317857958,-500.0,0.00030356,60]
[394139399,1763317857968,-500.0,0.00030356,60]
[394139400,1763317857979,-500.0,0.00030356,14]
[394139401,1763317857989,-736.0,0.00030356,60]
[394139402,1763317857998,-285.04001405,0.00030356,60]
[394139403,1763317858007,-150.0,0.00030356,60]
[394139404,1763317858017,-150.0,0.00030356,60]
[394139405,1763317858026,-1539.0,0.00030357,2]
[394139406,1763317858036,-166.66,0.00030382,2]
[394139407,1763317858046,-1000.0,0.00030411,2]
[394139408,1763317858055,-303.91669423,0.00030411,60]
[394139409,1763317858064,-211.14422192,0.00030411,60]
[394139410,1763317858074,-500.0,0.00030411,60]
[394139411,1763317858084,-500.0,0.00030411,60]
[394139412,1763317858093,-589.33252774,0.00030411,60]
[394139413,1763317858103,-500.0,0.00030411,60]
[394139414,1763317858112,-500.0,0.00030411,60]
[394139415,1763317858121,-500.0,0.00030411,60]
[394139416,1763317858131,-427.67813262,0.00030411,60]
[394139417,1763317858140,-162.0587197,0.00030411,60]
[394139418,1763317858149,-500.0,0.00030411,60]
[394139419,1763317858159,-500.0,0.00030411,60]
[394139420,1763317858168,-500.0,0.00030411,14]
[394139421,1763317858178,-736.0,0.00030411,60]
[394139422,1763317858187,-250.0,0.00030411,60]
[394139423,1763317858197,-250.0,0.00030411,60]
[394139424,1763317858207,-401.19111454,0.00030438,2]
[394139425,1763317858216,-151.0,0.00030438,2]
[394139426,1763317858225,-344.91441206,0.00030438,2]
[394139427,1763317858234,-200.0,0.00030438,2]
[394139428,1763317858243,-420.87567967,0.00030466,60]
[394139429,1763317858252,-500.0,0.00030466,60]
[394139430,1763317858261,-227.67445404,0.00030466,60]
[394139431,1763317858271,-384.98560342,0.00030466,60]
[394139432,1763317858280,-500.0,0.00030466,60]
[394139433,1763317858289,-500.0,0.00030466,60]
[394139434,1763317858299,-296.468335,0.00030466,60]
[394139435,1763317858308,-500.0,0.00030466,14]
[394139436,1763317858317,-736.0,0.00030466,60]
[394139437,1763317858326,-150.0,0.00030521,30]
[394139438,1763317858336,-456.13980161,0.00030521,60]
[394139439,1763317858345,-500.0,0.00030521,60]
[394139440,1763317858354,-500.0,0.00030521,60]
[394139441,1763317858364,-500.0,0.00030521,14]
[394139442,1763317858373,-736.0,0.00030521,60]
[394139443,1763317858382,-500.0,0.00030575,60]
[394139444,1763317858392,-405.30573341,0.00030575,60]
[394139445,1763317858401,-489.19478539,0.00030575,14]
[394139446,1763317858411,-736.0,0.00030575,60]
[394139447,1763317858419,-216.1,0.000306,3]
[394139448,1763317858428,-500.0,0.0003063,60]
[394139449,1763317858437,-736.0,0.0003063,60]
[394139450,1763317858446,-1000.0,0.00030685,2]
[394139451,1763317858455,-84096.32,0.00030685,30]
[394139452,1763317858465,-500.0,0.00030685,60]
[394139453,1763317858474,-736.0,0.00030685,60]
[394139454,1763317858483,-500.0,0.0003074,60]
[394139455,1763317858492,-736.0,0.0003074,60]
[394139456,1763317858502,-200.0,0.00030743,2]
[394139457,1763317858511,-500.0,0.00030795,60]
[394139458,1763317858523,-736.0,0.00030795,60]
[394139459,1763317858532,-1289.4,0.000308,30]
[394139460,1763317858542,-250.0,0.000308,30]
[394139461,1763317858551,-500.0,0.00030849,60]
[394139462,1763317858560,-736.0,0.00030849,60]
[394139463,1763317858570,-1550.69859932,0.00030888,60]
[394139464,1763317858579,-457.17151397,0.00030896,15]
[394139465,1763317858588,-2064.02,0.000309,2]
[394139466,1763317858597,-500.0,0.00030904,60]
[394139467,1763317858607,-736.0,0.00030904,60]
[394139468,1763317858615,-150.0,0.00030904,30]
[394139469,1763317858624,-11518.14728537,0.0003095,2]
[394139470,1763317858634,-152.0,0.00030953,3]
[394139471,1763317858643,-1000.0,0.00030959,2]
[394139472,1763317858652,-500.0,0.00030959,60]
[394139473,1763317858662,-736.0,0.00030959,60]
[394139474,1763317858671,-336.15931384,0.00031,120]
[394139475,1763317858681,-479.06402154,0.00031,30]
[394139476,1763317858690,-481.41,0.00031,7]
[394139477,1763317858700,-1899.26933907,0.00031,2]
[394139478,1763317858709,-385.69115399,0.00031014,60]
[394139479,1763317858719,-736.0,0.00031014,60]
[394139480,1763317858728,-736.0,0.00031069,60]
[394139481,1763317858738,-736.0,0.00031123,60]
[394139482,1763317858747,-736.0,0.00031178,60]
[394139483,1763317858757,-323.058,0.00031222,30]
[394139484,1763317858766,-1000.0,0.00031233,2]
[394139485,1763317858775,-736.0,0.00031233,60]
[394139486,1763317858784,-736.0,0.00031288,60]
[394139487,1763317858794,-150.0,0.00031288,30]
[394139488,1763317858803,-736.0,0.00031342,60]
[394139489,1763317858813,-747.28780433,0.00031397,60]
[394139490,1763317858827,-645.12403091,0.0003143,4]
[394139491,1763317858836,-157.0,0.000315,7]
[394139492,1763317858845,-600.0,0.00031507,120]
[394139493,1763317858855,-1000.0,0.00031507,2]
[394139494,1763317858864,-168.1,0.000316,7]
[394139495,1763317858874,-416.71,0.00031623,2]
[394139496,1763317858883,-416.71,0.00031623,2]
[394139497,1763317858893,-416.71,0.00031623,2]
[394139498,1763317858902,-416.71,0.00031623,2]
[394139499,1763317858912,-416.71,0.00031623,2]
[394139500,1763317858921,-416.71,0.00031623,2]
[394139501,1763317858930,-833.42,0.00031623,2]
[394139502,1763317858940,-416.71,0.00031623,2]
[394139503,1763317858950,-416.71,0.00031623,2]
[394139504,1763317858959,-416.71,0.00031623,2]
[394139505,1763317858969,-416.71,0.00031623,2]
[394139506,1763317858978,-150.0,0.00031671,30]
[394139507,1763317858991,-1000.0,0.00031781,2]
[394139508,1763317859001,-2000.0,0.000318,2]
[394139509,1763317859012,-416.03518578,0.00031807,2]
[394139510,1763317859021,-151.0,0.00031807,2]
[394139511,1763317859030,-357.6762453,0.00031807,2]
[394139512,1763317859040,-479.06402154,0.000319,30]
[394139513,1763317859049,-512.29,0.000319,7]
[394139514,1763317859058,-197.63284531,0.00032,120]
[394139515,1763317859067,-665.4742987,0.00032,120]
[394139516,1763317859076,-151.0,0.00032,7]
[394139517,1763317859085,-705.57681743,0.00032,60]
[394139518,1763317859095,-1312.28041013,0.00032,2]
[394139519,1763317859104,-163.30568809,0.00032,120]
[394139520,1763317859113,-3078.41529786,0.00032,7]
[394139521,1763317859122,-1000.0,0.00032055,2]
[394139522,1763317859131,-260.22104327,0.00032055,30]
[394139523,1763317859140,-12971.1811343,0.00032061,2]
[394139524,1763317859150,-152.0,0.00032099,4]
[394139525,1763317859159,-1289.4,0.000323,30]
[394139526,1763317859168,-2064.02,0.000323,2]
[394139527,1763317859177,-1000.0,0.00032329,2]
[394139528,1763317859186,-481.41,0.000324,7]
[394139529,1763317859196,-1599.0,0.00032436,2]
[394139530,1763317859204,-821.0,0.00032436,2]
[394139531,1763317859214,-793.0,0.00032436,2]
[394139532,1763317859223,-1275.0,0.00032436,2]
[394139533,1763317859232,-907.0,0.00032436,2]
[394139534,1763317859242,-1190.0,0.00032436,2]
[394139535,1763317859252,-575.0,0.00032436,2]
[394139536,1763317859261,-3430.0,0.00032436,2]
[394139537,1763317859270,-608.0,0.00032436,2]
[394139538,1763317859279,-833.42,0.00032445,2]
[394139539,1763317859287,-476.99,0.000325,7]
[394139540,1763317859296,-1000.0,0.00032603,2]
[394139541,1763317859305,-495.27,0.00032877,2]
[394139542,1763317859314,-151.0,0.00032877,90]
[394139543,1763317859323,-1000.0,0.00032877,7]
[394139544,1763317859331,-1000.0,0.00032877,120]
[394139545,1763317859340,-179.35339138,0.00032877,60]
[394139546,1763317859350,-150.0,0.00032877,60]
[394139547,1763317859359,-500.0,0.00032877,7]
[394139548,1763317859368,-500.0,0.00032877,7]
[394139549,1763317859377,-500.0,0.00032877,7]
[394139550,1763317859386,-500.0,0.00032877,7]
[394139551,1763317859395,-500.0,0.00032877,7]
[394139552,1763317859404,-500.0,0.00032877,7]
[394139553,1763317859414,-500.0,0.00032877,7]
[394139554,1763317859424,-500.0,0.00032877,7]
[394139555,1763317859433,-500.0,0.00032877,7]
[394139556,1763317859443,-500.0,0.00032877,7]
[394139557,1763317859452,-500.0,0.00032877,7]
[394139558,1763317859461,-500.0,0.00032877,7]
[394139559,1763317859471,-500.0,0.00032877,7]
[394139560,1763317859480,-500.0,0.00032877,7]
[394139561,1763317859489,-500.0,0.00032877,7]
[394139562,1763317859499,-500.0,0.00032877,7]
[394139563,1763317859509,-500.0,0.00032877,7]
[394139564,1763317859518,-500.0,0.00032877,7]
[394139565,1763317859528,-500.0,0.00032877,7]
[394139566,1763317859538,-500.0,0.00032877,7]
[394139567,1763317859547,-500.0,0.00032877,7]
[394139568,1763317859557,-500.0,0.00032877,7]
[394139569,1763317859566,-500.0,0.00032877,7]
[394139570,1763317859576,-500.0,0.00032877,7]
[394139571,1763317859585,-500.0,0.00032877,7]
[394139572,1763317859595,-500.0,0.00032877,7]
[394139573,1763317859604,-500.0,0.00032877,7]
[394139574,1763317859614,-500.0,0.00032877,7]
[394139575,1763317859623,-500.0,0.00032877,7]
[394139576,1763317859632,-500.0,0.00032877,7]
[394139577,1763317859641,-500.0,0.00032877,7]
[394139578,1763317859651,-500.0,0.00032877,7]
[394139579,1763317859660,-500.0,0.00032877,7]
[394139580,1763317859670,-500.0,0.00032877,7]
[394139581,1763317859680,-500.0,0.00032877,7]
[394139582,1763317859689,-500.0,0.00032877,7]
[394139583,1763317859698,-500.0,0.00032877,7]
[394139584,1763317859708,-500.0,0.00032877,7]
[394139585,1763317859717,-500.0,0.00032877,7]
[394139586,1763317859726,-270.81051658,0.00032877,7]
[394139587,1763317859736,-500.0,0.00032877,7]
[394139588,1763317859745,-500.0,0.00032877,7]
[394139589,1763317859754,-500.0,0.00032877,7]
[394139590,1763317859763,-500.0,0.00032877,7]
[394139591,1763317859773,-500.0,0.00032877,7]
[394139592,1763317859782,-500.0,0.00032877,7]
[394139593,1763317859791,-168.1,0.000329,14]
[394139594,1763317859800,-150.0,0.00032932,60]
[394139595,1763317859810,-282.21849629,0.00032987,60]
[394139596,1763317859821,-665.4742987,0.00033,120]
[394139597,1763317859831,-150.0,0.00033,14]
[394139598,1763317859840,-175.0,0.00033,14]
[394139599,1763317859849,-532.0,0.00033,14]
[394139600,1763317859859,-190.0,0.00033,14]
[394139601,1763317859869,-164.0,0.00033,14]
[394139602,1763317859879,-1316.01460208,0.0003302,2]
[394139603,1763317859888,-488.0,0.0003315,7]
[394139604,1763317859899,-532.0,0.00033151,30]
[394139605,1763317859908,-1000.0,0.00033151,7]
[394139606,1763317859918,-781.16,0.00033165,2]
[394139607,1763317859927,-431.42848765,0.00033176,2]
[394139608,1763317859937,-151.0,0.00033176,2]
[394139609,1763317859946,-370.91026638,0.00033176,2]
[394139610,1763317859955,-152.0,0.00033245,5]
[394139611,1763317859964,-588.450852,0.0003325,2]
[394139612,1763317859973,-532.0,0.00033425,30]
[394139613,1763317859983,-1000.0,0.00033425,7]
[394139614,1763317859993,-151.0,0.00033425,90]
[394139615,1763317860002,-2000.0,0.00033425,120]
[394139616,1763317860011,-1000.0,0.00033425,120]
[394139617,1763317860019,-457.17151397,0.00033507,15]
[394139618,1763317860029,-1677.50393996,0.00033541,2]
[394139619,1763317860038,-532.0,0.00033699,30]
[394139620,1763317860047,-1000.0,0.00033699,7]
[394139621,1763317860057,-665.4742987,0.000339,120]
[394139622,1763317860067,-502.97341376,0.00033939,60]
[394139623,1763317860075,-488.0,0.00033972,8]
[394139624,1763317860084,-532.0,0.00033973,30]
[394139625,1763317860248,-151.0,0.00033973,90]
[394139626,1763317860258,-1000.0,0.00033973,7]
[394139627,1763317860268,-2000.0,0.00033973,120]
[394139628,1763317860277,-1000.0,0.00033973,120]
[394139629,1763317860287,-168.1,0.000343,14]
[394139630,1763317860296,-1528.92,0.00034319,30]
[394139631,1763317860305,-152.0,0.0003439,6]
[394139632,1763317860314,-700.23,0.00034438,2]
[394139633,1763317860323,-155.19434225,0.000345,120]
[394139634,1763317860332,-175.0,0.00034521,30]
[394139635,1763317860341,-190.0,0.00034521,30]
[394139636,1763317860350,-532.0,0.00034521,30]
[394139637,1763317860359,-2000.0,0.00034521,120]
[394139638,1763317860368,-1000.0,0.00034521,120]
[394139639,1763317860377,-447.3913417,0.00034545,2]
[394139640,1763317860387,-151.0,0.00034545,2]
[394139641,1763317860396,-384.63394623,0.00034545,2]
[394139642,1763317860405,-488.0,0.00034794,9]
[394139643,1763317860414,-478.25,0.00034822,2]
[394139644,1763317860424,-478.25,0.00034822,2]
[394139645,1763317860433,-478.25,0.00034822,2]
[394139646,1763317860442,-478.25,0.00034822,2]
[394139647,1763317860451,-478.25,0.00034822,2]
[394139648,1763317860459,-478.25,0.00034822,2]
[394139649,1763317860469,-478.25,0.00034822,2]
[394139650,1763317860478,-478.25,0.00034822,2]
[394139651,1763317860489,-1086.47,0.00034822,2]
[394139652,1763317860498,-700.23,0.00034822,2]
[394139653,1763317860507,-956.41,0.00034822,2]
[394139654,1763317860516,-700.23,0.00034822,2]
[394139655,1763317860528,-400.0,0.000349,12]
[394139656,1763317860538,-11385.38516394,0.0003498,14]
[394139657,1763317860563,-349.24300055,0.0003498,14]
[394139658,1763317860574,-464.76347741,0.0003498,14]
[394139659,1763317860585,-46333.28371543,0.0003498,14]
[394139660,1763317860595,-665.4742987,0.00035,120]
[394139661,1763317860604,-150.0,0.00035,2]
[394139662,1763317860613,-523.24198587,0.00035,2]
[394139663,1763317860758,-987.54994659,0.00020099,2]
[394139664,1763317860773,-355.18993141,0.00020099,2]
[394139665,1763317860782,-1342.739878,0.00022224,2]
[394139666,1763317860792,-151.0,0.00024658,7]
[394139667,1763317860801,-151.0,0.00024658,7]
[394139668,1763317860811,-151.0,0.00024767,7]
[394139669,1763317860821,-1342.739878,0.00024767,7]
[394139670,1763317860831,-171.195358,0.00024767,7]
[394139671,1763317860840,-1342.739878,0.00024767,7]
[394139672,1763317860850,-151.0,0.000248,7]
[394139673,1763317860859,-1342.739878,0.000248,7]
[394139674,1763317860869,-1342.739878,0.000248,7]
[394139675,1763317860878,-151.0,0.00026,7]
[394139676,1763317860887,-1342.739878,0.00026,7]
[394139677,1763317860899,-700.23,0.00029918,2]
[394139678,1763317860909,-1829.75636406,0.00035,2]